fUST/lending_fUST_20251002
["ID","MTS","AMOUNT","RATE_DAILY","PERIOD"]
[388734437,1759341057845,-500.0,0.00020779,2]
[388734438,1759341057855,-500.0,0.00020779,2]
[388734439,1759341057864,-487.30246011,0.00020779,2]
[388734440,1759341057874,-200.0117218,0.00020779,2]
[388734441,1759341057883,-500.0,0.00020779,2]
[388734442,1759341057892,-500.0,0.00020779,2]
[388734443,1759341057901,-500.0,0.00020779,2]
[388734444,1759341057911,-200.01019669,0.00020779,2]
[388734445,1759341057920,-200.41102314,0.00020779,2]
[388734446,1759341057929,-500.0,0.00020779,2]
[388734447,1759341057938,-500.0,0.00020779,2]
[388734448,1759341057947,-502.60943045,0.00020779,2]
[388734449,1759341057957,-500.0,0.00020779,2]
[388734450,1759341057966,-500.0,0.00020779,2]
[388734451,1759341057976,-500.0,0.00020779,2]
[388734452,1759341057985,-158.96308781,0.00020779,2]
[388734453,1759341057995,-500.0,0.00020779,2]
[388734454,1759341058016,-500.0,0.00020779,2]
[388734455,1759341058026,-500.0,0.00020779,2]
[388734456,1759341058036,-500.0,0.00020779,2]
[388734457,1759341058046,-500.0,0.00020779,2]
[388734458,1759341058056,-500.0,0.00020779,2]
[388734459,1759341058065,-500.0,0.00020779,2]
[388734460,1759341058074,-500.0,0.00020779,2]
[388734461,1759341058083,-500.0,0.00020779,2]
[388734462,1759341058092,-500.0,0.00020779,2]
[388734463,1759341058102,-500.0,0.00020779,2]
[388734464,1759341058111,-500.0,0.00020779,2]
[388734465,1759341058120,-500.0,0.00020779,2]
[388734466,1759341058129,-500.0,0.00020779,2]
[388734467,1759341058138,-500.0,0.00020779,2]
[388734468,1759341058147,-420.0,0.00020815,2]
[388734469,1759341058156,-500.0,0.00020821,2]
[388734470,1759341058165,-682.44,0.00020821,2]
[388734471,1759341058174,-500.0,0.00020821,2]
[388734472,1759341058183,-575.25,0.00020821,2]
[388734473,1759341058192,-409.68,0.00020821,2]
[388734474,1759341058202,-500.0,0.00020821,2]
[388734475,1759341058211,-500.0,0.00020821,2]
[388734476,1759341058220,-500.0,0.00020821,2]
[388734477,1759341058229,-500.0,0.00020821,2]
[388734478,1759341058238,-500.0,0.00020821,2]
[388734479,1759341058247,-600.07,0.00020821,2]
[388734480,1759341058255,-500.0,0.00020821,2]
[388734481,1759341058265,-500.0,0.00020821,2]
[388734482,1759341058274,-500.0,0.00020821,2]
[388734483,1759341058283,-500.0,0.00020821,2]
[388734484,1759341058292,-500.0,0.00020821,2]
[388734485,1759341058302,-184.12,0.00020821,2]
[388734486,1759341058311,-500.0,0.00020821,2]
[388734487,1759341058321,-500.0,0.00020821,2]
[388734488,1759341058330,-500.0,0.00020821,2]
[388734489,1759341058340,-500.0,0.00020821,2]
[388734490,1759341058349,-852.85,0.00020821,2]
[388734491,1759341058359,-500.0,0.00020821,2]
[388734492,1759341058369,-500.0,0.00020821,2]
[388734493,1759341058379,-500.0,0.00020821,2]
[388734494,1759341058388,-500.0,0.00020821,2]
[388734495,1759341058398,-500.0,0.00020821,2]
[388734496,1759341058407,-500.0,0.00020821,2]
[388734497,1759341058416,-151.0,0.00020821,2]
[388734498,1759341058426,-500.0,0.00020821,2]
[388734499,1759341058437,-500.0,0.00020821,2]
[388734500,1759341058446,-151.0,0.00020821,2]
[388734501,1759341058455,-215.061325,0.00020821,2]
[388734502,1759341058464,-215.061325,0.00020821,2]
[388734503,1759341058473,-215.061325,0.00020821,2]
[388734504,1759341058482,-787.61,0.00020821,2]
[388734505,1759341058492,-215.061325,0.00020821,2]
[388734506,1759341058503,-818.24,0.00020821,2]
[388734507,1759341058512,-500.0,0.00020821,2]
[388734508,1759341058522,-528.56,0.00020821,2]
[388734509,1759341058532,-500.0,0.00020821,2]
[388734510,1759341058542,-340.0,0.00020821,2]
[388734511,1759341058553,-500.0,0.00020821,2]
[388734512,1759341058564,-500.0,0.00020821,2]
[388734513,1759341058575,-500.0,0.00020821,2]
[388734514,1759341058584,-936.29,0.00020821,2]
[388734515,1759341058594,-500.0,0.00020821,2]
[388734516,1759341058603,-500.0,0.00020821,2]
[388734517,1759341058612,-922.28,0.00020821,2]
[388734518,1759341058622,-529.19,0.00020821,2]
[388734519,1759341058632,-500.0,0.00020821,2]
[388734520,1759341058641,-500.0,0.00020821,2]
[388734521,1759341058651,-500.0,0.00020821,2]
[388734522,1759341058660,-500.0,0.00020821,2]
[388734523,1759341058670,-500.0,0.00020821,2]
[388734524,1759341058679,-465.66,0.00020821,2]
[388734525,1759341058688,-612.5359093,0.00020821,2]
[388734526,1759341058697,-500.0,0.00020821,2]
[388734527,1759341058706,-500.0,0.00020821,2]
[388734528,1759341058716,-500.0,0.00020821,2]
[388734529,1759341058725,-500.0,0.00020821,2]
[388734530,1759341058734,-763.2,0.00020821,2]
[388734531,1759341058743,-460.0,0.00020821,2]
[388734532,1759341058752,-292.37,0.00020821,2]
[388734533,1759341058761,-1386.52,0.00020821,2]
[388734534,1759341058770,-500.0,0.00020821,2]
[388734535,1759341058779,-500.0,0.00020821,2]
[388734536,1759341058788,-500.0,0.00020821,2]
[388734537,1759341058798,-151.0,0.00020821,2]
[388734538,1759341058807,-888.68,0.00020821,2]
[388734539,1759341058818,-191.578652,0.00020821,2]
[388734540,1759341058836,-500.0,0.00020821,2]
[388734541,1759341058846,-500.0,0.00020821,2]
[388734542,1759341058855,-463.89373646,0.00020821,2]
[388734543,1759341058865,-2255.76,0.00020821,2]
[388734544,1759341058874,-500.0,0.00020821,2]
[388734545,1759341058894,-1087.38,0.00020821,2]
[388734546,1759341058906,-565.41,0.00020821,2]
[388734547,1759341058916,-500.0,0.00020821,2]
[388734548,1759341058925,-500.0,0.00020821,2]
[388734549,1759341058935,-1282.09,0.00020821,2]
[388734550,1759341058946,-500.0,0.00020821,2]
[388734551,1759341058956,-500.0,0.00020821,2]
[388734552,1759341058966,-842.17,0.00020821,2]
[388734553,1759341058976,-500.0,0.00020821,2]
[388734554,1759341058985,-1244.93,0.00020821,2]
[388734555,1759341058995,-500.0,0.00020821,2]
[388734556,1759341059004,-500.0,0.00020821,2]
[388734557,1759341059013,-500.0,0.00020821,2]
[388734558,1759341059023,-500.0,0.00020821,2]
[388734559,1759341059032,-648.03,0.00020821,2]
[388734560,1759341059042,-500.0,0.00020821,2]
[388734561,1759341059051,-500.0,0.00020821,2]
[388734562,1759341059060,-151.0,0.00020821,2]
[388734563,1759341059070,-500.0,0.00020821,2]
[388734564,1759341059079,-637.01,0.00020821,2]
[388734565,1759341059089,-500.0,0.00020821,2]
[388734566,1759341059099,-440.0,0.00020821,2]
[388734567,1759341059118,-982.62,0.00020821,2]
[388734568,1759341059128,-500.0,0.00020821,2]
[388734569,1759341059137,-500.0,0.00020821,2]
[388734570,1759341059147,-1033.08,0.00020821,2]
[388734571,1759341059157,-500.0,0.00020821,2]
[388734572,1759341059166,-500.0,0.00020821,2]
[388734573,1759341059176,-500.0,0.00020821,2]
[388734574,1759341059185,-500.0,0.00020821,2]
[388734575,1759341059195,-500.0,0.00020821,2]
[388734576,1759341059204,-222.3,0.00020821,2]
[388734577,1759341059214,-500.0,0.00020821,2]
[388734578,1759341059224,-702.56,0.00020821,2]
[388734579,1759341059233,-1723.43,0.00020821,2]
[388734580,1759341059243,-500.0,0.00020821,2]
[388734581,1759341059252,-525.98,0.00020821,2]
[388734582,1759341059262,-500.0,0.00020821,2]
[388734583,1759341059271,-500.0,0.00020821,2]
[388734584,1759341059281,-850.61,0.00020821,2]
[388734585,1759341059291,-500.0,0.00020821,2]
[388734586,1759341059300,-500.0,0.00020821,2]
[388734587,1759341059309,-500.0,0.00020821,2]
[388734588,1759341059318,-811.21,0.00020821,2]
[388734589,1759341059328,-516.39,0.00020821,2]
[388734590,1759341059337,-907.21,0.00020821,2]
[388734591,1759341059346,-500.0,0.00020821,2]
[388734592,1759341059356,-601.34,0.00020821,2]
[388734593,1759341059365,-501.11,0.00020821,2]
[388734594,1759341059375,-151.0,0.00020821,2]
[388734595,1759341059384,-151.0,0.00020821,2]
[388734596,1759341059394,-151.0,0.00020821,2]
[388734597,1759341059403,-151.0,0.00020821,2]
[388734598,1759341059412,-151.0,0.00020821,2]
[388734599,1759341059422,-500.0,0.00020821,2]
[388734600,1759341059431,-1659.57,0.00020821,2]
[388734601,1759341059441,-500.0,0.00020821,2]
[388734602,1759341059450,-500.0,0.00020821,2]
[388734603,1759341059459,-522.75,0.00020821,2]
[388734604,1759341059468,-651.79,0.00020821,2]
[388734605,1759341059477,-500.0,0.00020821,2]
[388734606,1759341059487,-812.63,0.00020821,2]
[388734607,1759341059496,-537.47,0.00020821,2]
[388734608,1759341059505,-500.0,0.00020821,2]
[388734609,1759341059656,-623.22,0.00020821,2]
[388734610,1759341059666,-743.14,0.00020821,2]
[388734611,1759341059676,-500.0,0.00020821,2]
[388734612,1759341059685,-500.0,0.00020821,2]
[388734613,1759341059694,-782.64,0.00020821,2]
[388734614,1759341059703,-151.0,0.00020821,2]
[388734615,1759341059712,-500.0,0.00020821,2]
[388734616,1759341059721,-500.0,0.00020821,2]
[388734617,1759341059730,-151.10690839,0.00020821,2]
[388734618,1759341059739,-634.89,0.00020821,2]
[388734619,1759341059749,-500.0,0.00020821,2]
[388734620,1759341059758,-631.54,0.00020821,2]
[388734621,1759341059767,-593.39,0.00020821,2]
[388734622,1759341059776,-1725.19,0.00020821,2]
[388734623,1759341059785,-522.04,0.00020821,2]
[388734624,1759341059794,-612.05,0.00020821,2]
[388734625,1759341059804,-500.0,0.00020821,2]
[388734626,1759341059813,-1330.12,0.00020821,2]
[388734627,1759341059822,-2633.63,0.00020821,2]
[388734628,1759341059831,-151.0,0.00020821,2]
[388734629,1759341059840,-500.0,0.00020821,2]
[388734630,1759341059850,-500.0,0.00020821,2]
[388734631,1759341059859,-501.31,0.00020821,2]
[388734632,1759341059870,-500.0,0.00020821,2]
[388734633,1759341059879,-1304.72,0.00020821,2]
[388734634,1759341059888,-500.0,0.00020821,2]
[388734635,1759341059897,-500.0,0.00020821,2]
[388734636,1759341059905,-1580.28,0.00020821,2]
[388734637,1759341059914,-500.0,0.00020821,2]
[388734638,1759341059924,-2766.66,0.00020821,2]
[388734639,1759341059933,-553.47499876,0.00020932,2]
[388734640,1759341059942,-501.49014216,0.00020932,2]
[388734641,1759341059952,-501.30909708,0.00020932,2]
[388734642,1759341059961,-500.0,0.00020932,2]
[388734643,1759341059970,-500.0,0.00020932,2]
[388734644,1759341059979,-471.20805777,0.00020932,2]
[388734645,1759341059992,-176.23590451,0.00020932,2]
[388734646,1759341060002,-500.0,0.00020932,2]
[388734647,1759341060011,-500.0,0.00020932,2]
[388734648,1759341060020,-200.01019671,0.00020932,2]
[388734649,1759341060029,-200.0117218,0.00020932,2]
[388734650,1759341060040,-500.0,0.00020932,2]
[388734651,1759341060049,-150.40881481,0.00020932,2]
[388734652,1759341060059,-500.0,0.00020932,2]
[388734653,1759341060068,-256.69308645,0.00020932,2]
[388734654,1759341060078,-291.0232396,0.00020932,2]
[388734655,1759341060087,-200.01019671,0.00020932,2]
[388734656,1759341060097,-500.0,0.00020933,2]
[388734657,1759341060106,-500.0,0.00020933,2]
[388734658,1759341060116,-500.0,0.00020933,2]
[388734659,1759341060125,-500.0,0.00020953,2]
[388734660,1759341060134,-500.0,0.00020953,2]
[388734661,1759341060143,-500.0,0.00020953,2]
[388734662,1759341060153,-500.0,0.00020958,2]
[388734663,1759341060162,-518.29434462,0.00020958,2]
[388734664,1759341060171,-4000.0,0.00021,4]
[388734665,1759341060181,-155.0,0.00021095,2]
[388734666,1759341060191,-500.0,0.00021095,2]
[388734667,1759341060200,-682.44,0.00021095,2]
[388734668,1759341060210,-500.0,0.00021095,2]
[388734669,1759341060219,-500.0,0.00021095,2]
[388734670,1759341060229,-500.0,0.00021095,2]
[388734671,1759341060238,-500.0,0.00021095,2]
[388734672,1759341060248,-500.0,0.00021095,2]
[388734673,1759341060257,-500.0,0.00021095,2]
[388734674,1759341060267,-500.0,0.00021095,2]
[388734675,1759341060276,-500.0,0.00021095,2]
[388734676,1759341060286,-602.85402588,0.00021095,2]
[388734677,1759341060296,-575.37,0.00021095,2]
[388734678,1759341060305,-500.0,0.00021095,2]
[388734679,1759341060314,-500.0,0.00021095,2]
[388734680,1759341060323,-500.0,0.00021095,2]
[388734681,1759341060332,-500.0,0.00021095,2]
[388734682,1759341060341,-852.85,0.00021095,2]
[388734683,1759341060350,-500.0,0.00021095,2]
[388734684,1759341060360,-500.0,0.00021095,2]
[388734685,1759341060369,-500.0,0.00021095,2]
[388734686,1759341060379,-500.0,0.00021095,2]
[388734687,1759341060387,-500.0,0.00021095,2]
[388734688,1759341060396,-500.0,0.00021095,2]
[388734689,1759341060405,-500.0,0.00021095,2]
[388734690,1759341060414,-500.0,0.00021095,2]
[388734691,1759341060424,-787.61,0.00021095,2]
[388734692,1759341060434,-818.24,0.00021095,2]
[388734693,1759341060443,-500.0,0.00021095,2]
[388734694,1759341060452,-528.56,0.00021095,2]
[388734695,1759341060461,-500.0,0.00021095,2]
[388734696,1759341060470,-500.0,0.00021095,2]
[388734697,1759341060479,-500.0,0.00021095,2]
[388734698,1759341060487,-500.0,0.00021095,2]
[388734699,1759341060497,-936.29,0.00021095,2]
[388734700,1759341060506,-500.0,0.00021095,2]
[388734701,1759341060515,-500.0,0.00021095,2]
[388734702,1759341060524,-922.28,0.00021095,2]
[388734703,1759341060533,-529.19,0.00021095,2]
[388734704,1759341060542,-500.0,0.00021095,2]
[388734705,1759341060552,-500.0,0.00021095,2]
[388734706,1759341060562,-500.0,0.00021095,2]
[388734707,1759341060572,-249.43018183,0.00021095,2]
[388734708,1759341060581,-500.0,0.00021095,2]
[388734709,1759341060590,-500.0,0.00021095,2]
[388734710,1759341060600,-500.0,0.00021095,2]
[388734711,1759341060608,-500.0,0.00021095,2]
[388734712,1759341060615,-278.74,0.00021095,2]
[388734713,1759341060625,-763.2,0.00021095,2]
[388734714,1759341060634,-1386.52,0.00021095,2]
[388734715,1759341060642,-500.0,0.00021095,2]
[388734716,1759341060650,-500.0,0.00021095,2]
[388734717,1759341060658,-500.0,0.00021095,2]
[388734718,1759341060666,-888.68,0.00021095,2]
[388734719,1759341060674,-500.0,0.00021095,2]
[388734720,1759341060682,-500.0,0.00021095,2]
[388734721,1759341060689,-2255.76,0.00021095,2]
[388734722,1759341060697,-1087.38,0.00021095,2]
[388734723,1759341060705,-565.41,0.00021095,2]
[388734724,1759341060714,-500.0,0.00021095,2]
[388734725,1759341060723,-500.0,0.00021095,2]
[388734726,1759341060732,-1282.09,0.00021095,2]
[388734727,1759341060741,-500.0,0.00021095,2]
[388734728,1759341060749,-842.17,0.00021095,2]
[388734729,1759341060759,-500.0,0.00021095,2]
[388734730,1759341060770,-500.0,0.00021095,2]
[388734731,1759341060781,-1244.93,0.00021095,2]
[388734732,1759341060791,-500.0,0.00021095,2]
[388734733,1759341060800,-500.0,0.00021095,2]
[388734734,1759341060810,-604.5,0.00021095,2]
[388734735,1759341060818,-500.0,0.00021095,2]
[388734736,1759341060827,-648.03,0.00021095,2]
[388734737,1759341060836,-500.0,0.00021095,2]
[388734738,1759341060845,-560.78,0.00021095,2]
[388734739,1759341060855,-500.0,0.00021095,2]
[388734740,1759341060864,-637.01,0.00021095,2]
[388734741,1759341060873,-500.0,0.00021095,2]
[388734742,1759341060882,-982.62,0.00021095,2]
[388734743,1759341060893,-500.0,0.00021095,2]
[388734744,1759341060903,-500.0,0.00021095,2]
[388734745,1759341060911,-1033.08,0.00021095,2]
[388734746,1759341060919,-500.0,0.00021095,2]
[388734747,1759341060927,-500.0,0.00021095,2]
[388734748,1759341060935,-500.0,0.00021095,2]
[388734749,1759341060943,-500.0,0.00021095,2]
[388734750,1759341060951,-500.0,0.00021095,2]
[388734751,1759341060960,-500.0,0.00021095,2]
[388734752,1759341060969,-702.56,0.00021095,2]
[388734753,1759341060978,-1723.43,0.00021095,2]
[388734754,1759341060987,-500.0,0.00021095,2]
[388734755,1759341060996,-525.98,0.00021095,2]
[388734756,1759341061005,-500.0,0.00021095,2]
[388734757,1759341061014,-500.0,0.00021095,2]
[388734758,1759341061023,-850.61,0.00021095,2]
[388734759,1759341061034,-500.0,0.00021095,2]
[388734760,1759341061043,-500.0,0.00021095,2]
[388734761,1759341061052,-500.0,0.00021095,2]
[388734762,1759341061062,-811.21,0.00021095,2]
[388734763,1759341061071,-516.39,0.00021095,2]
[388734764,1759341061080,-907.21,0.00021095,2]
[388734765,1759341061089,-500.0,0.00021095,2]
[388734766,1759341061098,-601.34,0.00021095,2]
[388734767,1759341061107,-501.11,0.00021095,2]
[388734768,1759341061116,-500.0,0.00021095,2]
[388734769,1759341061125,-1659.57,0.00021095,2]
[388734770,1759341061134,-500.0,0.00021095,2]
[388734771,1759341061143,-500.0,0.00021095,2]
[388734772,1759341061152,-522.75,0.00021095,2]
[388734773,1759341061161,-651.79,0.00021095,2]
[388734774,1759341061170,-500.0,0.00021095,2]
[388734775,1759341061179,-812.63,0.00021095,2]
[388734776,1759341061187,-537.47,0.00021095,2]
[388734777,1759341061197,-580.88,0.00021095,2]
[388734778,1759341061205,-623.22,0.00021095,2]
[388734779,1759341061214,-743.14,0.00021095,2]
[388734780,1759341061223,-500.0,0.00021095,2]
[388734781,1759341061232,-500.0,0.00021095,2]
[388734782,1759341061241,-782.64,0.00021095,2]
[388734783,1759341061250,-500.0,0.00021095,2]
[388734784,1759341061260,-500.0,0.00021095,2]
[388734785,1759341061269,-634.89,0.00021095,2]
[388734786,1759341061278,-500.0,0.00021095,2]
[388734787,1759341061288,-631.54,0.00021095,2]
[388734788,1759341061298,-593.39,0.00021095,2]
[388734789,1759341061307,-1725.19,0.00021095,2]
[388734790,1759341061317,-522.04,0.00021095,2]
[388734791,1759341061327,-612.05,0.00021095,2]
[388734792,1759341061336,-500.0,0.00021095,2]
[388734793,1759341061345,-1330.12,0.00021095,2]
[388734794,1759341061354,-2633.63,0.00021095,2]
[388734795,1759341061363,-500.0,0.00021095,2]
[388734796,1759341061374,-500.0,0.00021095,2]
[388734797,1759341061383,-501.31,0.00021095,2]
[388734798,1759341061392,-500.0,0.00021095,2]
[388734799,1759341061401,-1304.72,0.00021095,2]
[388734800,1759341061410,-500.0,0.00021095,2]
[388734801,1759341061419,-500.0,0.00021095,2]
[388734802,1759341061428,-1580.28,0.00021095,2]
[388734803,1759341061437,-2766.66,0.00021095,2]
[388734804,1759341061447,-1732.55927127,0.00021116,2]
[388734805,1759341061457,-500.0,0.00021116,2]
[388734806,1759341061466,-2000.0,0.00021116,2]
[388734807,1759341061475,-1282.94653091,0.00021116,2]
[388734808,1759341061484,-1260.01687714,0.00021116,2]
[388734809,1759341061492,-2000.0,0.00021116,2]
[388734810,1759341061501,-2000.0,0.00021116,2]
[388734811,1759341061509,-2000.0,0.00021116,2]
[388734812,1759341061516,-2000.0,0.00021116,2]
[388734813,1759341061525,-1500.0,0.00021116,2]
[388734814,1759341061533,-12237.5212054,0.00021154,2]
[388734815,1759341061542,-1435.46496311,0.0002116,2]
[388734816,1759341061551,-153.586922,0.0002124,14]
[388734817,1759341061562,-160.0,0.00021257,2]
[388734818,1759341061570,-500.0,0.00021327,2]
[388734819,1759341061579,-500.0,0.00021327,2]
[388734820,1759341061590,-500.0,0.00021327,2]
[388734821,1759341061599,-1000.0,0.00021327,2]
[388734822,1759341061708,-521.44036848,0.00021327,2]
[388734823,1759341061718,-1000.0,0.00021327,2]
[388734824,1759341061727,-500.0,0.00021327,2]
[388734825,1759341061737,-500.0,0.00021327,2]
[388734826,1759341061746,-1000.0,0.00021327,2]
[388734827,1759341061755,-413.1103713,0.00021327,2]
[388734828,1759341061765,-1000.0,0.00021327,2]
[388734829,1759341061775,-500.73488065,0.00021327,2]
[388734830,1759341061785,-1000.0,0.00021327,2]
[388734831,1759341061794,-1000.0,0.00021327,2]
[388734832,1759341061803,-500.0,0.00021327,2]
[388734833,1759341061813,-500.0,0.00021327,2]
[388734834,1759341061823,-500.0,0.00021327,2]
[388734835,1759341061833,-1000.0,0.00021327,2]
[388734836,1759341061844,-500.0,0.00021327,2]
[388734837,1759341061853,-1000.0,0.00021327,2]
[388734838,1759341061864,-151.0,0.00021327,2]
[388734839,1759341061873,-151.0,0.00021327,2]
[388734840,1759341061883,-151.0,0.00021327,2]
[388734841,1759341061896,-151.0,0.00021327,2]
[388734842,1759341061906,-549.0,0.00021328,2]
[388734843,1759341061917,-500.0,0.00021369,2]
[388734844,1759341061926,-682.44,0.00021369,2]
[388734845,1759341061936,-500.0,0.00021369,2]
[388734846,1759341061945,-500.0,0.00021369,2]
[388734847,1759341061953,-500.0,0.00021369,2]
[388734848,1759341061963,-319.51144712,0.00021369,2]
[388734849,1759341061973,-500.0,0.00021369,2]
[388734850,1759341061982,-500.0,0.00021369,2]
[388734851,1759341061991,-500.0,0.00021369,2]
[388734852,1759341062001,-420.0,0.00021369,2]
[388734853,1759341062010,-500.0,0.00021369,2]
[388734854,1759341062019,-500.0,0.00021369,2]
[388734855,1759341062030,-500.0,0.00021369,2]
[388734856,1759341062039,-500.0,0.00021369,2]
[388734857,1759341062048,-852.85,0.00021369,2]
[388734858,1759341062057,-500.0,0.00021369,2]
[388734859,1759341062067,-391.14666989,0.00021369,2]
[388734860,1759341062076,-500.0,0.00021369,2]
[388734861,1759341062086,-497.09,0.00021369,2]
[388734862,1759341062096,-500.0,0.00021369,2]
[388734863,1759341062106,-500.0,0.00021369,2]
[388734864,1759341062116,-500.0,0.00021369,2]
[388734865,1759341062127,-500.0,0.00021369,2]
[388734866,1759341062138,-787.61,0.00021369,2]
[388734867,1759341062147,-818.24,0.00021369,2]
[388734868,1759341062156,-365.74,0.00021369,2]
[388734869,1759341062166,-528.56,0.00021369,2]
[388734870,1759341062176,-500.0,0.00021369,2]
[388734871,1759341062186,-500.0,0.00021369,2]
[388734872,1759341062196,-500.0,0.00021369,2]
[388734873,1759341062208,-500.0,0.00021369,2]
[388734874,1759341062219,-936.29,0.00021369,2]
[388734875,1759341062230,-151.0,0.00021369,2]
[388734876,1759341062240,-323.03,0.00021369,2]
[388734877,1759341062249,-500.0,0.00021369,2]
[388734878,1759341062261,-922.28,0.00021369,2]
[388734879,1759341062270,-529.19,0.00021369,2]
[388734880,1759341062280,-500.0,0.00021369,2]
[388734881,1759341062291,-500.0,0.00021369,2]
[388734882,1759341062300,-228.791014,0.00021369,2]
[388734883,1759341062311,-228.791014,0.00021369,2]
[388734884,1759341062320,-500.0,0.00021369,2]
[388734885,1759341062329,-228.791014,0.00021369,2]
[388734886,1759341062338,-228.791014,0.00021369,2]
[388734887,1759341062347,-500.0,0.00021369,2]
[388734888,1759341062357,-500.0,0.00021369,2]
[388734889,1759341062367,-500.0,0.00021369,2]
[388734890,1759341062378,-500.0,0.00021369,2]
[388734891,1759341062388,-763.2,0.00021369,2]
[388734892,1759341062398,-1386.52,0.00021369,2]
[388734893,1759341062408,-500.0,0.00021369,2]
[388734894,1759341062418,-500.0,0.00021369,2]
[388734895,1759341062428,-500.0,0.00021369,2]
[388734896,1759341062437,-888.68,0.00021369,2]
[388734897,1759341062446,-500.0,0.00021369,2]
[388734898,1759341062456,-500.0,0.00021369,2]
[388734899,1759341062465,-2255.76,0.00021369,2]
[388734900,1759341062476,-1087.38,0.00021369,2]
[388734901,1759341062485,-565.41,0.00021369,2]
[388734902,1759341062494,-500.0,0.00021369,2]
[388734903,1759341062503,-500.0,0.00021369,2]
[388734904,1759341062512,-1282.09,0.00021369,2]
[388734905,1759341062521,-500.0,0.00021369,2]
[388734906,1759341062530,-842.17,0.00021369,2]
[388734907,1759341062540,-500.0,0.00021369,2]
[388734908,1759341062550,-500.0,0.00021369,2]
[388734909,1759341062563,-1244.93,0.00021369,2]
[388734910,1759341062572,-500.0,0.00021369,2]
[388734911,1759341062585,-500.0,0.00021369,2]
[388734912,1759341062596,-500.0,0.00021369,2]
[388734913,1759341062605,-648.03,0.00021369,2]
[388734914,1759341062615,-500.0,0.00021369,2]
[388734915,1759341062625,-500.0,0.00021369,2]
[388734916,1759341062634,-637.01,0.00021369,2]
[388734917,1759341062644,-500.0,0.00021369,2]
[388734918,1759341062653,-982.62,0.00021369,2]
[388734919,1759341062663,-500.0,0.00021369,2]
[388734920,1759341062673,-500.0,0.00021369,2]
[388734921,1759341062683,-1033.08,0.00021369,2]
[388734922,1759341062694,-500.0,0.00021369,2]
[388734923,1759341062704,-500.0,0.00021369,2]
[388734924,1759341062714,-500.0,0.00021369,2]
[388734925,1759341062724,-500.0,0.00021369,2]
[388734926,1759341062733,-500.0,0.00021369,2]
[388734927,1759341062742,-531.62,0.00021369,2]
[388734928,1759341062752,-702.56,0.00021369,2]
[388734929,1759341062762,-1723.43,0.00021369,2]
[388734930,1759341062771,-500.0,0.00021369,2]
[388734931,1759341062781,-525.98,0.00021369,2]
[388734932,1759341062790,-500.0,0.00021369,2]
[388734933,1759341062799,-500.0,0.00021369,2]
[388734934,1759341062809,-850.61,0.00021369,2]
[388734935,1759341062824,-287.4,0.00021369,2]
[388734936,1759341062835,-500.0,0.00021369,2]